[Event "European Rapid Championship 2021"]
[Site "Katowice"]
[Date "2021.12.19"]
[Round "8.25"]
[White "Flasinski, Michal"]
[Black "Redzisz, Michal"]
[Result "1/2-1/2"]
[ECO "D92"]
[WhiteElo "2195"]
[BlackElo "2257"]
[Annotator "NA"]
[PlyCount "77"]
[EventDate "2021.12.18"]
[EventType "swiss"]
[EventCountry "POL"]
[SourceTitle "playchess.com"]
[Source "ChessBase"]
[SourceQuality "1"]
[TimeControl "900+10"]

1. d4 {[%emt 0:00:01]} Nf6 {[%emt 0:00:01]} 2. Nf3 {[%emt 0:00:03]} g6 {
[%emt 0:00:06]} 3. c4 {[%emt 0:00:02]} Bg7 {[%emt 0:00:01]} 4. Nc3 {[%emt 0:00:
09]} d5 {[%emt 0:00:01]} 5. Bf4 {[%emt 0:00:30]} O-O {[%emt 0:00:20]} 6. Rc1 {
[%emt 0:00:02]} c6 {[%emt 0:01:11]} 7. e3 {[%emt 0:00:16]} a6 {[%emt 0:01:24]}
8. h3 {[%emt 0:00:41]} b5 {[%emt 0:00:41]} 9. cxd5 {[%emt 0:00:10]} cxd5 {
[%emt 0:00:03]} 10. Bd3 {[%emt 0:00:22]} Bb7 {[%emt 0:01:06]} 11. O-O {[%emt 0:
00:04]} Nc6 {[%emt 0:00:13]} 12. Qe2 {[%emt 0:00:34]} Rc8 {[%emt 0:00:17]} 13.
Nd2 {[%emt 0:01:14]} Nh5 {[%emt 0:01:30]} 14. Bg5 {[%emt 0:00:38]} Qd6 {
[%emt 0:01:03]} 15. Nb3 {[%emt 0:01:56]} e5 {[%emt 0:00:55]} 16. dxe5 {[%emt 0:
01:27]} Nxe5 {[%emt 0:00:14]} 17. Rfd1 {[%emt 0:00:16]} Nxd3 {[%emt 0:02:57]}
18. Rxd3 {[%emt 0:02:05]} b4 {[%emt 0:00:51]} 19. Nd1 {[%emt 0:02:36]} Rxc1 {
[%emt 0:00:09]} 20. Nxc1 {[%emt 0:00:02]} a5 {[%emt 0:01:52]} 21. Qf3 {[%emt 0:
01:12]} Qc7 {[%emt 0:00:50]} 22. Nb3 {[%emt 0:01:34]} d4 {[%emt 0:00:08]} 23.
Qg4 {[%emt 0:00:18]} f5 {[%emt 0:01:23]} 24. Qh4 {[%emt 0:00:56]} h6 {[%emt 0:
00:18]} 25. Bxh6 {[%emt 0:01:12]} Bxh6 {[%emt 0:00:34]} 26. Nxd4 {[%emt 0:00:
02]} Qc4 {[%emt 0:00:43]} 27. Rd2 {[%emt 0:00:16]} a4 {[%emt 0:00:23]} 28. Nxf5
{[%emt 0:00:17]} Qxh4 {[%emt 0:00:11]} 29. Nxh4 {[%emt 0:00:01]} g5 {[%emt 0:
00:16]} 30. Ng6 {[%emt 0:00:03]} Re8 {[%emt 0:00:11]} 31. Rd7 {[%emt 0:00:09]}
Be4 {[%emt 0:00:08]} 32. Ne7+ {[%emt 0:00:08]} Kf8 {[%emt 0:00:01]} 33. Nd5 {
[%emt 0:00:02]} Bxd5 {[%emt 0:00:19]} 34. Rxd5 {[%emt 0:00:02]} Nf6 {[%emt 0:
00:07]} 35. Rd4 {[%emt 0:00:09]} Rb8 {[%emt 0:00:16]} 36. Kf1 {[%emt 0:00:05]}
Bg7 {[%emt 0:00:01]} 37. a3 {[%emt 0:00:11]} bxa3 {[%emt 0:00:15]} 38. bxa3 {
[%emt 0:00:02]} Rb3 {[%emt 0:00:19]} 39. Rxa4 {[%emt 0:00:05]} 1/2-1/2

[Event "European Rapid Championship 2021"]
[Site "Katowice"]
[Date "2021.12.19"]
[Round "8.25"]
[White "Kukula, Pawel"]
[Black "Diermair, Andreas"]
[Result "1/2-1/2"]
[ECO "A40"]
[WhiteElo "2088"]
[BlackElo "2408"]
[Annotator "NA"]
[PlyCount "66"]
[EventDate "2021.12.18"]
[EventType "swiss"]
[EventCountry "POL"]
[SourceTitle "playchess.com"]
[Source "ChessBase"]
[SourceQuality "1"]
[TimeControl "900+10"]

1. d4 {[%emt 0:00:06]} e6 2. Nf3 {[%emt 0:00:07]} f5 {[%emt 0:00:03]} 3. Nc3 {
[%emt 0:00:03]} Nf6 {[%emt 0:00:08]} 4. Bg5 {[%emt 0:00:04]} Bb4 {[%emt 0:00:
41]} 5. Qd3 {[%emt 0:00:48]} h6 {[%emt 0:01:27]} 6. Bxf6 {[%emt 0:00:12]} Qxf6
{[%emt 0:00:02]} 7. O-O-O {[%emt 0:00:04]} O-O {[%emt 0:00:18]} 8. h3 {[%emt 0:
00:25]} b6 {[%emt 0:00:40]} 9. g4 {[%emt 0:01:31]} Ba6 {[%emt 0:00:40]} 10. Qd2
{[%emt 0:00:11]} c5 {[%emt 0:01:10]} 11. Rg1 {[%emt 0:02:03]} cxd4 {[%emt 0:03:
53]} 12. Nxd4 {[%emt 0:00:16]} f4 {[%emt 0:00:45]} 13. Bg2 {[%emt 0:00:38]} Nc6
{[%emt 0:00:01]} 14. Bxc6 {[%emt 0:02:58]} dxc6 {[%emt 0:00:02]} 15. Nxc6 {
[%emt 0:00:55]} Bxc3 {[%emt 0:00:29]} 16. Qxc3 {[%emt 0:00:01]} Qxc3 {[%emt 0:
00:41]} 17. bxc3 {[%emt 0:00:02]} Bxe2 {[%emt 0:00:08]} 18. Rd6 {[%emt 0:00:24]
} Bc4 {[%emt 0:02:10]} 19. Kb2 {[%emt 0:00:15]} Rfe8 {[%emt 0:01:02]} 20. g5 {
[%emt 0:01:18]} h5 {[%emt 0:00:04]} 21. Ne5 {[%emt 0:00:04]} Be2 {[%emt 0:00:
57]} 22. f3 {[%emt 0:02:22]} Rad8 {[%emt 0:00:27]} 23. Rxd8 {[%emt 0:00:02]}
Rxd8 {[%emt 0:00:01]} 24. Re1 {[%emt 0:00:01]} Ba6 {[%emt 0:01:40]} 25. Ng6 {
[%emt 0:00:02]} Bb7 {[%emt 0:00:25]} 26. Nxf4 {[%emt 0:00:11]} Bxf3 {[%emt 0:
00:02]} 27. Rxe6 {[%emt 0:00:23]} h4 {[%emt 0:00:49]} 28. g6 {[%emt 0:00:06]}
Rf8 {[%emt 0:00:11]} 29. Nd3 {[%emt 0:00:24]} Bg2 {[%emt 0:00:20]} 30. Re3 {
[%emt 0:00:42]} Rf6 {[%emt 0:00:21]} 31. Re8+ {[%emt 0:00:03]} Rf8 {[%emt 0:00:
02]} 32. Re3 {[%emt 0:00:11]} Rf6 {[%emt 0:00:01]} 33. Re8+ {[%emt 0:00:03]}
Rf8 1/2-1/2

[Event "European Rapid Championship 2021"]
[Site "Katowice"]
[Date "2021.12.19"]
[Round "8.26"]
[White "Przybylski, Wojciech"]
[Black "Piechocki, Franciszek"]
[Result "1-0"]
[ECO "B52"]
[WhiteElo "2321"]
[BlackElo "1936"]
[Annotator "NA"]
[PlyCount "68"]
[EventDate "2021.12.18"]
[EventType "swiss"]
[EventCountry "POL"]
[SourceTitle "playchess.com"]
[Source "ChessBase"]
[SourceQuality "1"]
[TimeControl "900+10"]

1. e4 {[%emt 0:00:02]} c5 {[%emt 0:00:01]} 2. Nf3 {[%emt 0:00:03]} d6 {[%emt 0:
00:02]} 3. Bb5+ {[%emt 0:00:03]} Bd7 {[%emt 0:00:06]} 4. Bxd7+ {[%emt 0:00:10]}
Qxd7 {[%emt 0:00:02]} 5. c4 {[%emt 0:00:02]} g6 {[%emt 0:00:27]} 6. O-O {
[%emt 0:00:06]} Bg7 {[%emt 0:00:03]} 7. d4 {[%emt 0:00:03]} cxd4 {[%emt 0:00:
05]} 8. Nxd4 {[%emt 0:00:03]} Nc6 {[%emt 0:00:07]} 9. Be3 {[%emt 0:01:31]} Nf6
{[%emt 0:00:09]} 10. f3 {[%emt 0:00:05]} O-O {[%emt 0:00:09]} 11. Nc3 {[%emt 0:
00:03]} Rac8 {[%emt 0:00:50]} 12. b3 {[%emt 0:00:15]} Nxd4 {[%emt 0:01:49]} 13.
Bxd4 {[%emt 0:00:02]} b6 {[%emt 0:00:16]} 14. Qd2 {[%emt 0:00:36]} Qc6 {
[%emt 0:01:22]} 15. Rac1 {[%emt 0:00:30]} Rfd8 {[%emt 0:02:20]} 16. Rfd1 {
[%emt 0:01:08]} Ne8 {[%emt 0:02:09]} 17. Nd5 {[%emt 0:04:07]} Bxd4+ {[%emt 0:
01:44]} 18. Qxd4 {[%emt 0:00:02]} Rd7 {[%emt 0:00:13]} 19. Ne3 {[%emt 0:01:00]}
Qc5 {[%emt 0:00:34]} 20. Qc3 {[%emt 0:01:08]} Nf6 {[%emt 0:00:53]} 21. b4 {
[%emt 0:00:12]} Qe5 {[%emt 0:01:20]} 22. Qd3 {[%emt 0:02:18]} e6 {[%emt 0:01:
31]} 23. Qd4 {[%emt 0:02:24]} Qxd4 {[%emt 0:00:42]} 24. Rxd4 {[%emt 0:00:01]}
Kf8 {[%emt 0:00:29]} 25. Rcd1 {[%emt 0:00:11]} Ke7 {[%emt 0:00:13]} 26. g4 {
[%emt 0:00:42]} g5 {[%emt 0:00:43]} 27. Kf2 {[%emt 0:00:01]} a5 {[%emt 0:00:26]
} 28. bxa5 {[%emt 0:00:15]} Ra8 {[%emt 0:00:28]} 29. axb6 {[%emt 0:01:35]}
Rxa2+ {[%emt 0:00:01]} 30. R4d2 {[%emt 0:00:01]} Rxd2+ {[%emt 0:00:01]} 31.
Rxd2 {[%emt 0:00:00]} Rb7 {[%emt 0:00:01]} 32. e5 {[%emt 0:00:25]} Nd7 {
[%emt 0:00:55]} 33. exd6+ {[%emt 0:00:04]} Ke8 {[%emt 0:00:01]} 34. Rb2 {
[%emt 0:01:20]} Rxb6 1-0

[Event "European Rapid Championship 2021"]
[Site "Katowice"]
[Date "2021.12.19"]
[Round "8.26"]
[White "Brzezinski, Mateusz"]
[Black "Kjartansson, Gudmundur"]
[Result "1/2-1/2"]
[ECO "D00"]
[WhiteElo "2187"]
[BlackElo "2402"]
[Annotator "NA"]
[PlyCount "133"]
[EventDate "2021.12.18"]
[EventType "swiss"]
[EventCountry "POL"]
[SourceTitle "playchess.com"]
[Source "ChessBase"]
[SourceQuality "1"]
[TimeControl "900+10"]

1. d4 d5 {[%emt 0:00:10]} 2. Bf4 {[%emt 0:00:14]} c5 {[%emt 0:00:26]} 3. e3 {
[%emt 0:00:05]} Nc6 {[%emt 0:00:05]} 4. c3 {[%emt 0:00:34]} Bf5 {[%emt 0:00:31]
} 5. Nd2 {[%emt 0:00:11]} e6 {[%emt 0:00:06]} 6. Ngf3 {[%emt 0:00:15]} cxd4 {
[%emt 0:00:17]} 7. exd4 {[%emt 0:00:10]} Bd6 {[%emt 0:00:03]} 8. Bg3 {[%emt 0:
00:04]} h6 {[%emt 0:00:42]} 9. Bb5 {[%emt 0:01:06]} Nge7 {[%emt 0:00:21]} 10.
Qe2 {[%emt 0:00:12]} O-O {[%emt 0:00:07]} 11. O-O {[%emt 0:00:06]} a6 {[%emt 0:
00:48]} 12. Bd3 {[%emt 0:00:06]} Bxg3 {[%emt 0:00:31]} 13. hxg3 {[%emt 0:00:13]
} b5 {[%emt 0:00:06]} 14. b4 {[%emt 0:00:22]} Bxd3 {[%emt 0:00:17]} 15. Qxd3 {
[%emt 0:00:01]} Nf5 {[%emt 0:00:01]} 16. a4 {[%emt 0:00:14]} Nd6 {[%emt 0:00:
14]} 17. Nb3 {[%emt 0:00:24]} bxa4 {[%emt 0:00:50]} 18. Rxa4 {[%emt 0:00:06]}
a5 {[%emt 0:00:05]} 19. Rfa1 {[%emt 0:00:36]} Nc4 {[%emt 0:00:04]} 20. R4a2 {
[%emt 0:01:44]} Qb6 {[%emt 0:04:44]} 21. Nfd2 {[%emt 0:00:32]} Rfc8 {[%emt 0:
01:54]} 22. Nc5 {[%emt 0:00:33]} Nxd2 {[%emt 0:00:35]} 23. Qxd2 {[%emt 0:00:02]
} Ra7 24. Qb2 {[%emt 0:02:08]} axb4 {[%emt 0:00:22]} 25. Rxa7 {[%emt 0:00:08]}
Nxa7 {[%emt 0:00:03]} 26. Ra6 {[%emt 0:02:42]} Qb8 {[%emt 0:00:02]} 27. cxb4 {
[%emt 0:00:31]} Nc6 {[%emt 0:02:03]} 28. b5 {[%emt 0:02:27]} Nxd4 {[%emt 0:00:
08]} 29. b6 {[%emt 0:00:04]} Rxc5 {[%emt 0:00:54]} 30. b7 {[%emt 0:00:02]} Kh7
{[%emt 0:02:54]} 31. Ra8 {[%emt 0:01:07]} Qe5 {[%emt 0:00:28]} 32. Qb1+ {
[%emt 0:01:40]} g6 {[%emt 0:00:15]} 33. b8=Q {[%emt 0:00:04]} Rc1+ {[%emt 0:00:
07]} 34. Qxc1 {[%emt 0:00:03]} Qxb8 {[%emt 0:00:12]} 35. Qxh6+ {[%emt 0:01:01]}
Kxh6 {[%emt 0:00:03]} 36. Rxb8 {[%emt 0:00:01]} Kg5 {[%emt 0:00:05]} 37. f3 {
[%emt 0:00:07]} Kf6 {[%emt 0:00:10]} 38. Rb7 {[%emt 0:00:03]} Nf5 {[%emt 0:00:
03]} 39. Kf2 {[%emt 0:00:04]} Nd6 {[%emt 0:00:01]} 40. Ra7 {[%emt 0:00:02]} Nc4
{[%emt 0:00:05]} 41. g4 {[%emt 0:00:08]} Ne5 {[%emt 0:00:09]} 42. Kg3 {[%emt 0:
00:54]} g5 {[%emt 0:00:01]} 43. Kf2 {[%emt 0:00:02]} Ng6 {[%emt 0:00:21]} 44.
Ra8 {[%emt 0:00:05]} Nf4 {[%emt 0:00:05]} 45. g3 {[%emt 0:00:08]} Nd3+ {
[%emt 0:00:04]} 46. Ke3 {[%emt 0:00:02]} Ne5 {[%emt 0:00:01]} 47. Rg8 {[%emt 0:
00:05]} Nc4+ {[%emt 0:00:58]} 48. Kd4 {[%emt 0:00:06]} Ne5 {[%emt 0:00:17]} 49.
Ke3 {[%emt 0:00:52]} Nc4+ {[%emt 0:00:01]} 50. Ke2 {[%emt 0:00:01]} Nd6 {
[%emt 0:00:14]} 51. f4 {[%emt 0:00:21]} Ne4 {[%emt 0:00:01]} 52. Kf3 {[%emt 0:
00:04]} Nd2+ {[%emt 0:00:02]} 53. Ke3 {[%emt 0:00:06]} Ne4 {[%emt 0:00:03]} 54.
Kf3 {[%emt 0:00:32]} Nd2+ {[%emt 0:00:01]} 55. Kg2 {[%emt 0:00:03]} Ne4 {
[%emt 0:00:03]} 56. Ra8 {[%emt 0:00:17]} Kg6 {[%emt 0:00:11]} 57. Ra2 {[%emt 0:
00:03]} Kf6 {[%emt 0:00:25]} 58. Kf3 {[%emt 0:00:25]} Nc3 {[%emt 0:00:02]} 59.
Rh2 {[%emt 0:00:12]} Ne4 {[%emt 0:00:05]} 60. Re2 {[%emt 0:00:17]} Nc3 {
[%emt 0:00:03]} 61. Rd2 {[%emt 0:00:18]} Ne4 {[%emt 0:00:05]} 62. Rc2 {[%emt 0:
00:01]} Nd6 {[%emt 0:00:06]} 63. Rg2 {[%emt 0:00:06]} Ne4 {[%emt 0:00:02]} 64.
Ke3 {[%emt 0:00:01]} Nd6 {[%emt 0:00:10]} 65. Rh2 {[%emt 0:00:06]} Ne4 {
[%emt 0:00:01]} 66. Rh3 {[%emt 0:00:02]} Kg6 {[%emt 0:00:13]} 67. Kf3 {[%emt 0:
00:25]} 1/2-1/2

[Event "European Rapid Championship 2021"]
[Site "Katowice"]
[Date "2021.12.19"]
[Round "8.27"]
[White "Wiewiora, Eneasz"]
[Black "Dzhuguryan, Tygran"]
[Result "1/2-1/2"]
[ECO "B14"]
[WhiteElo "2333"]
[BlackElo "2047"]
[Annotator "ChessBase"]
[PlyCount "180"]
[EventDate "2021.12.18"]
[EventType "swiss"]
[EventCountry "POL"]
[SourceTitle "playchess.com"]
[Source "ChessBase"]
[SourceQuality "1"]
[TimeControl "900+10"]

1. e4 {[%emt 0:00:02]} c6 {[%emt 0:00:01]} 2. c4 {[%emt 0:00:10]} d5 {[%emt 0:
00:06]} 3. exd5 {[%emt 0:00:02]} cxd5 {[%emt 0:00:02]} 4. d4 {[%emt 0:00:01]}
Nf6 {[%emt 0:00:02]} 5. Nc3 {[%emt 0:00:01]} e6 {[%emt 0:00:03]} 6. Nf3 {
[%emt 0:00:01]} Bb4 {[%emt 0:00:02]} 7. Bd3 {[%emt 0:00:18]} dxc4 {[%emt 0:00:
22]} 8. Bxc4 {[%emt 0:00:02]} Bxc3+ {[%emt 0:00:06]} 9. bxc3 {[%emt 0:00:01]}
Qc7 {[%emt 0:00:06]} 10. Qe2 {[%emt 0:00:48]} O-O {[%emt 0:00:03]} 11. O-O {
[%emt 0:00:08]} Nbd7 {[%emt 0:00:47]} 12. Bd2 {[%emt 0:07:50]} b6 {[%emt 0:01:
02]} 13. Bd3 {[%emt 0:00:03]} Bb7 {[%emt 0:00:03]} 14. h3 {[%emt 0:00:00]} Rfe8
{[%emt 0:00:24]} 15. Rfe1 {[%emt 0:00:51]} Nf8 {[%emt 0:01:19]} 16. Ne5 Ng6 {
[%emt 0:00:03]} 17. Nxg6 {[%emt 0:00:36]} hxg6 {[%emt 0:00:46]} 18. c4 {
[%emt 0:00:29]} Qc6 {[%emt 0:00:27]} 19. f3 {[%emt 0:00:44]} Qd6 {[%emt 0:05:
01]} 20. Be3 {[%emt 0:00:08]} Ba6 {[%emt 0:00:25]} 21. Qf2 {[%emt 0:00:26]} Qa3
{[%emt 0:00:11]} 22. Bf1 {[%emt 0:01:18]} Rac8 {[%emt 0:01:52]} 23. Rec1 {
[%emt 0:00:22]} Qa4 24. Qc2 {[%emt 0:00:01]} Qxc2 {[%emt 0:00:58]} 25. Rxc2 Rc6
26. Rac1 {[%emt 0:03:17]} Rec8 {[%emt 0:00:28]} 27. a4 {[%emt 0:00:52]} Kf8 {
[%emt 0:01:33]} 28. a5 {[%emt 0:00:19]} b5 {[%emt 0:00:33]} 29. c5 {[%emt 0:00:
42]} Nd5 {[%emt 0:00:14]} 30. Bd2 {[%emt 0:00:08]} b4 {[%emt 0:00:05]} 31. Rb1
{[%emt 0:00:19]} Bxf1 {[%emt 0:01:06]} 32. Kxf1 {[%emt 0:00:01]} e5 {[%emt 0:
00:49]} 33. dxe5 {[%emt 0:00:01]} Rxc5 {[%emt 0:00:08]} 34. Rxc5 {[%emt 0:00:
22]} Rxc5 35. Rxb4 {[%emt 0:00:01]} Rc2 {[%emt 0:01:34]} 36. Rb8+ Ke7 {[%emt 0:
00:01]} 37. Ke2 {[%emt 0:00:12]} Ke6 {[%emt 0:00:01]} 38. Re8+ {[%emt 0:00:04]}
Kd7 {[%emt 0:00:02]} 39. Ra8 Rc7 40. Kd3 {[%emt 0:00:23]} Kc6 {[%emt 0:00:11]}
41. Rg8 Rd7 {[%emt 0:00:11]} 42. Ke2 {[%emt 0:00:37]} Nc7 {[%emt 0:00:09]} 43.
Rxg7 {[%emt 0:00:16]} a6 44. Rg8 Kd5 {[%emt 0:00:04]} 45. f4 {[%emt 0:00:26]}
Ke4 {[%emt 0:00:05]} 46. Rc8 {[%emt 0:00:05]} Ne6 {[%emt 0:00:05]} 47. Ke1 {
[%emt 0:00:12]} Nd4 {[%emt 0:00:00]} 48. Rc4 {[%emt 0:00:02]} Kd5 49. Rc8 {
[%emt 0:00:02]} Ke4 {[%emt 0:00:00]} 50. Ra8 {[%emt 0:00:33]} Rb7 {[%emt 0:00:
00]} 51. Bc3 {[%emt 0:00:08]} Nb5 {[%emt 0:00:12]} 52. Bd2 {[%emt 0:00:13]} Nd4
{[%emt 0:00:02]} 53. Bc3 {[%emt 0:00:01]} Nb5 54. Bb4 {[%emt 0:00:06]} Nd4 {
[%emt 0:00:04]} 55. Bc5 {[%emt 0:00:17]} Rb1+ {[%emt 0:00:15]} 56. Kd2 {
[%emt 0:00:15]} Rb2+ {[%emt 0:00:05]} 57. Ke1 {[%emt 0:00:13]} Ne6 {[%emt 0:00:
05]} 58. Bb6 {[%emt 0:00:06]} Nxf4 {[%emt 0:00:09]} 59. Rxa6 {[%emt 0:00:08]}
Nxg2+ {[%emt 0:00:05]} 60. Kd1 {[%emt 0:00:04]} Kd3 61. Kc1 {[%emt 0:00:04]}
Rb5 {[%emt 0:00:26]} 62. Ra7 {[%emt 0:00:07]} Nf4 {[%emt 0:00:00]} 63. Rd7+ Nd5
{[%emt 0:00:04]} 64. a6 {[%emt 0:00:38]} Kc3 {[%emt 0:00:02]} 65. Rxd5 {
[%emt 0:00:02]} Rxd5 {[%emt 0:00:31]} 66. a7 {[%emt 0:00:14]} Rxe5 {[%emt 0:00:
02]} 67. Bd4+ {[%emt 0:00:10]} Kxd4 {[%emt 0:00:10]} 68. a8=Q {[%emt 0:00:01]}
Rf5 {[%emt 0:00:00]} 69. Qe8 Kd3 70. Kb2 {[%emt 0:00:23]} Kd4 {[%emt 0:00:12]}
71. Kb3 {[%emt 0:00:00]} Rf3+ {[%emt 0:00:10]} 72. Kb4 Rf5 73. Qe7 {[%emt 0:00:
19]} Kd3 {[%emt 0:00:06]} 74. Ka4 {[%emt 0:00:25]} Kd4 {[%emt 0:00:05]} 75. Kb3
{[%emt 0:00:02]} Kd5 {[%emt 0:00:06]} 76. Kc3 {[%emt 0:00:04]} Rf3+ {[%emt 0:
00:05]} 77. Kd2 {[%emt 0:00:02]} Rf5 {[%emt 0:00:02]} 78. Kd3 {[%emt 0:00:09]}
Rf3+ {[%emt 0:00:11]} 79. Kc2 {[%emt 0:00:01]} Rf5 {[%emt 0:00:01]} 80. Kc3 {
[%emt 0:00:02]} Rf3+ {[%emt 0:00:02]} 81. Kb4 {[%emt 0:00:01]} Rf4+ {[%emt 0:
00:02]} 82. Kb5 {[%emt 0:00:07]} Rf5 {[%emt 0:00:02]} 83. Kb6 {[%emt 0:00:03]}
Kd4 {[%emt 0:00:22]} 84. Kc6 {[%emt 0:00:11]} Kd3 {[%emt 0:00:14]} 85. Kd7 {
[%emt 0:00:11]} Kd4 {[%emt 0:00:02]} 86. Ke8 {[%emt 0:00:02]} Re5 {[%emt 0:00:
09]} 87. Qxe5+ {[%emt 0:00:22]} Kxe5 {[%emt 0:00:02]} 88. Kxf7 Kf5 89. h4 {
[%emt 0:00:04]} Kg4 {[%emt 0:00:06]} 90. Kxg6 {[%emt 0:00:02]} Kxh4 {[%emt 0:
00:02]} 1/2-1/2

[Event "European Rapid Championship 2021"]
[Site "Katowice"]
[Date "2021.12.19"]
[Round "8.27"]
[White "Rudnicki, Milosz"]
[Black "Pozimski, Szymon"]
[Result "1/2-1/2"]
[ECO "D00"]
[WhiteElo "2200"]
[BlackElo "1911"]
[Annotator "NA"]
[PlyCount "56"]
[EventDate "2021.12.18"]
[EventType "swiss"]
[EventCountry "POL"]
[SourceTitle "playchess.com"]
[Source "ChessBase"]
[SourceQuality "1"]
[TimeControl "900+10"]

1. d4 {[%emt 0:00:14]} d5 {[%emt 0:00:01]} 2. Bf4 {[%emt 0:00:03]} Nf6 {
[%emt 0:00:01]} 3. e3 {[%emt 0:00:02]} c6 {[%emt 0:00:02]} 4. c3 {[%emt 0:00:
11]} Qb6 {[%emt 0:00:01]} 5. Qb3 {[%emt 0:00:34]} Bf5 {[%emt 0:00:05]} 6. Nd2 {
[%emt 0:00:55]} e6 {[%emt 0:00:05]} 7. Ngf3 {[%emt 0:00:36]} Nbd7 {[%emt 0:00:
04]} 8. Nh4 {[%emt 0:00:34]} Bg6 {[%emt 0:00:01]} 9. Nxg6 {[%emt 0:00:18]} hxg6
{[%emt 0:00:02]} 10. h3 {[%emt 0:00:33]} Be7 {[%emt 0:01:03]} 11. Bd3 {[%emt 0:
00:13]} O-O {[%emt 0:01:25]} 12. O-O {[%emt 0:00:18]} Rfc8 {[%emt 0:02:05]} 13.
e4 {[%emt 0:01:47]} dxe4 {[%emt 0:00:04]} 14. Nxe4 {[%emt 0:00:02]} Nxe4 {
[%emt 0:00:02]} 15. Bxe4 {[%emt 0:00:01]} Nf6 {[%emt 0:00:50]} 16. Bf3 {
[%emt 0:00:31]} Qxb3 {[%emt 0:00:05]} 17. axb3 {[%emt 0:00:01]} Rd8 {[%emt 0:
00:08]} 18. b4 {[%emt 0:00:44]} a6 {[%emt 0:00:06]} 19. Rfe1 {[%emt 0:00:40]}
Nd5 {[%emt 0:00:06]} 20. Bg3 {[%emt 0:02:01]} Rac8 {[%emt 0:00:15]} 21. Bxd5 {
[%emt 0:01:14]} Rxd5 {[%emt 0:00:16]} 22. f3 {[%emt 0:02:44]} Bf6 {[%emt 0:00:
20]} 23. Kf2 {[%emt 0:00:18]} Rcd8 {[%emt 0:00:09]} 24. Re4 {[%emt 0:00:32]}
Kf8 {[%emt 0:00:53]} 25. Ke2 {[%emt 0:00:16]} Rg5 {[%emt 0:00:55]} 26. Kf2 {
[%emt 0:00:09]} Rgd5 {[%emt 0:00:01]} 27. Ke2 {[%emt 0:00:01]} Rg5 {[%emt 0:00:
00]} 28. Kf2 {[%emt 0:00:01]} Rgd5 1/2-1/2

[Event "European Rapid Championship 2021"]
[Site "Katowice"]
[Date "2021.12.19"]
[Round "8.28"]
[White "Rigopoulos-Tsigkos, Alexandros"]
[Black "Wieczorek, Oskar"]
[Result "0-1"]
[ECO "B53"]
[WhiteElo "2076"]
[BlackElo "2367"]
[Annotator "NA"]
[PlyCount "104"]
[EventDate "2021.12.18"]
[EventType "swiss"]
[EventCountry "POL"]
[SourceTitle "playchess.com"]
[Source "ChessBase"]
[SourceQuality "1"]
[TimeControl "900+10"]

1. e4 {[%emt 0:01:08]} c5 {[%emt 0:00:01]} 2. Nf3 {[%emt 0:00:02]} d6 {[%emt 0:
00:00]} 3. d4 {[%emt 0:00:01]} cxd4 {[%emt 0:00:02]} 4. Qxd4 {[%emt 0:00:02]}
Nc6 {[%emt 0:00:11]} 5. Bb5 {[%emt 0:00:01]} Bd7 {[%emt 0:00:01]} 6. Bxc6 {
[%emt 0:00:02]} Bxc6 {[%emt 0:00:02]} 7. Nc3 {[%emt 0:00:01]} Nf6 {[%emt 0:00:
01]} 8. Bg5 {[%emt 0:00:01]} Qb6 {[%emt 0:00:01]} 9. Bxf6 {[%emt 0:01:42]} gxf6
{[%emt 0:00:05]} 10. Qxb6 {[%emt 0:02:28]} axb6 {[%emt 0:00:03]} 11. Nd4 {
[%emt 0:00:07]} Rg8 {[%emt 0:00:23]} 12. Nxc6 {[%emt 0:00:44]} bxc6 {[%emt 0:
00:03]} 13. g3 {[%emt 0:00:32]} e6 {[%emt 0:00:12]} 14. O-O {[%emt 0:01:37]} h5
{[%emt 0:00:52]} 15. h4 {[%emt 0:00:37]} d5 {[%emt 0:00:59]} 16. exd5 {[%emt 0:
00:17]} cxd5 {[%emt 0:00:02]} 17. Nb5 {[%emt 0:01:27]} Rc8 {[%emt 0:00:06]} 18.
c3 {[%emt 0:00:13]} f5 {[%emt 0:00:17]} 19. Kh2 {[%emt 0:01:03]} f4 {[%emt 0:
00:55]} 20. a4 {[%emt 0:00:22]} Kd7 {[%emt 0:04:29]} 21. a5 {[%emt 0:00:16]}
bxa5 {[%emt 0:00:13]} 22. Rxa5 {[%emt 0:00:01]} Bc5 {[%emt 0:00:01]} 23. Kg2 {
[%emt 0:00:56]} Bb6 {[%emt 0:01:52]} 24. Ra4 {[%emt 0:00:29]} Rc5 {[%emt 0:03:
08]} 25. Nd4 {[%emt 0:01:37]} Bc7 {[%emt 0:01:36]} 26. Ne2 {[%emt 0:00:02]} e5
{[%emt 0:01:59]} 27. Rd1 {[%emt 0:00:06]} Kc6 {[%emt 0:00:30]} 28. Ra6+ {
[%emt 0:00:58]} Bb6 {[%emt 0:00:01]} 29. Kf3 {[%emt 0:01:13]} Kb7 {[%emt 0:00:
26]} 30. Rxb6+ {[%emt 0:00:36]} Kxb6 {[%emt 0:00:11]} 31. gxf4 {[%emt 0:00:06]}
f6 {[%emt 0:00:28]} 32. b4 {[%emt 0:00:43]} Rb5 {[%emt 0:00:09]} 33. Ng3 {
[%emt 0:00:28]} Rc8 {[%emt 0:00:02]} 34. Ne2 {[%emt 0:00:21]} Rc4 {[%emt 0:01:
02]} 35. Rg1 {[%emt 0:00:17]} d4 {[%emt 0:00:04]} 36. cxd4 {[%emt 0:00:05]}
exd4 {[%emt 0:00:02]} 37. Rd1 {[%emt 0:00:12]} Rbxb4 {[%emt 0:00:13]} 38. Ke4 {
[%emt 0:00:11]} Kc5 {[%emt 0:00:02]} 39. Rd3 {[%emt 0:00:05]} Rb2 {[%emt 0:00:
21]} 40. Ng3 {[%emt 0:00:17]} Rxf2 {[%emt 0:00:22]} 41. Kf5 {[%emt 0:00:09]}
Kd5 {[%emt 0:00:14]} 42. Nxh5 {[%emt 0:00:04]} Rc3 {[%emt 0:00:03]} 43. Nxf6+ {
[%emt 0:00:02]} Kc4 {[%emt 0:00:01]} 44. Rd1 {[%emt 0:00:36]} Rcf3 {[%emt 0:00:
01]} 45. Rc1+ {[%emt 0:00:04]} Kb3 {[%emt 0:00:06]} 46. Nd5 {[%emt 0:00:11]} d3
{[%emt 0:00:03]} 47. Ke4 {[%emt 0:00:06]} d2 {[%emt 0:00:02]} 48. Ra1 {[%emt 0:
00:10]} Rf1 {[%emt 0:00:26]} 49. Rxf1 {[%emt 0:00:09]} Rxf1 {[%emt 0:00:02]}
50. Ne3 {[%emt 0:00:01]} Re1 {[%emt 0:00:02]} 51. Kd3 {[%emt 0:00:02]} Rxe3+ {
[%emt 0:00:03]} 52. Kxd2 {[%emt 0:00:01]} Rf3 {[%emt 0:00:10]} 0-1